bitfinex/quotes_SOLUSD_20240818
["timestamp","ask_amount","ask_price","bid_price","bid_amount"]
[1724001652767,51.8648,145.67,145.6,20.0]
[1724001653089,51.8648,145.67,145.61,1.37330202]
[1724001653293,51.8648,145.67,145.6,20.0]
[1724001653488,15.4567,145.68,145.62,22.22]
[1724001653802,21.4844,145.71,145.63,1.37256462]
[1724001654179,15.4567,145.71,145.62,22.22]
[1724001654363,15.4567,145.71,145.63,21.37256461]
[1724001654986,22.3197,145.71,145.63,21.37256461]
[1724001655292,22.3197,145.71,145.63,20.0]
[1724001655489,15.4567,145.71,145.63,20.0]
[1724001655697,45.0,145.7,145.61,22.22]
[1724001656000,45.0,145.7,145.62,21.37303086]
[1724001656576,51.8635,145.7,145.62,21.37303086]
[1724001660478,45.0,145.7,145.62,21.37303086]
[1724001660672,68.93633163,145.7,145.59,35.7281]
[1724001660895,6.8651,145.67,145.59,35.7281]
[1724001661078,45.0,145.66,145.59,35.7281]
[1724001661996,45.0,145.66,145.6,20.0]
[1724001664480,6.8644,145.68,145.6,20.0]
[1724001664790,15.4567,145.71,145.61,23.59324447]
[1724001664993,52.43349681,145.7,145.61,23.59324447]
[1724001665216,45.0,145.7,145.62,20.0]
[1724001665508,6.8642,145.69,145.62,20.0]
[1724001665800,45.0,145.68,145.62,20.0]
[1724001666597,51.8645,145.68,145.59,35.7281]
[1724001666797,51.8645,145.68,145.6,20.0]
[1724001668530,51.8645,145.68,145.6,28.89]
[1724001669907,6.8638,145.7,145.62,8.89]
[1724001670092,52.43345216,145.69,145.62,8.89]
[1724001670404,45.0,145.69,145.6,20.0]
[1724001670609,51.864,145.69,145.61,22.21]
[1724001670798,51.864,145.69,145.62,20.0]
[1724001671106,45.0,145.69,145.62,20.0]
[1724001671332,46.71661359,145.7,145.62,20.0]
[1724001671611,7.43514952,145.69,145.62,20.0]
[1724001671812,45.0,145.68,145.6,20.0]
[1724001673511,1.71673842,145.68,145.6,20.0]
[1724001673694,9.15151467,145.67,145.6,20.0]
[1724001673894,45.0,145.66,145.6,20.0]
[1724001674215,1.71673564,145.66,145.6,20.0]
[1724001674815,1.71673544,145.68,145.6,20.0]
[1724001675018,7.43310829,145.67,145.6,20.0]
[1724001675320,45.0,145.66,145.6,20.0]
[1724001676534,7.43243186,145.65,145.57,6.0455]
[1724001676831,52.43243186,145.64,145.58,20.0]
[1724001677021,45.0,145.64,145.58,20.0]
[1724001677225,1.71703216,145.63,145.58,20.0]
[1724001677711,45.0,145.65,145.58,20.0]
[1724001677909,7.4318096,145.64,145.58,20.0]
[1724001678122,52.4318096,145.63,145.58,20.0]
[1724001678429,7.43117924,145.62,145.58,20.0]
[1724001678602,46.71708821,145.65,145.58,20.0]
[1724001678802,7.43029804,145.64,145.58,20.0]
[1724001679103,52.43029804,145.63,145.58,20.0]
[1724001679307,7.43029804,145.62,145.58,20.0]
[1724001679511,45.0,145.65,145.58,21.37367761]
[1724001679719,7.43076259,145.64,145.58,21.37367761]
[1724001679909,16.6325,145.66,145.58,20.0]
[1724001680100,7.43109654,145.65,145.58,20.0]
[1724001680407,7.43109654,145.64,145.58,42.21]
[1724001680626,16.6325,145.66,145.58,42.21]
[1724001680925,7.43110529,145.65,145.58,42.21]
[1724001681126,7.43110529,145.64,145.58,42.21]
[1724001681422,7.4302267,145.63,145.58,42.21]
[1724001681599,16.6325,145.66,145.58,42.21]
[1724001681806,52.43080518,145.65,145.58,42.21]
[1724001682109,7.43080518,145.64,145.58,42.21]
[1724001682320,7.43047075,145.63,145.58,42.21]
[1724001682627,45.0,145.65,145.58,42.21]
[1724001682829,7.43056722,145.64,145.58,42.21]
[1724001683124,45.0,145.65,145.58,42.21]
[1724001683429,45.0,145.65,145.58,20.0]
[1724001683430,7.43068973,145.64,145.58,20.0]
[1724001683627,45.0,145.65,145.58,20.0]
[1724001683939,7.43038117,145.64,145.58,20.0]
[1724001684135,45.0,145.65,145.58,20.0]
[1724001684312,9.14755943,145.64,145.58,20.0]
[1724001684520,52.43038355,145.63,145.58,20.0]
[1724001684814,45.0,145.62,145.58,20.0]
[1724001685013,46.71716769,145.65,145.58,20.0]
[1724001685197,7.42806376,145.64,145.58,20.0]
[1724001685401,45.0,145.63,145.58,20.0]
[1724001685630,45.0,145.65,145.58,20.0]
[1724001685798,7.42764196,145.64,145.58,20.0]
[1724001686004,52.42749973,145.63,145.58,20.0]
[1724001686314,45.0,145.62,145.58,20.0]
[1724001686515,45.0,145.65,145.58,20.0]
[1724001686910,7.42754997,145.64,145.58,20.0]
[1724001687117,45.0,145.63,145.58,20.0]
[1724001687429,45.0,145.65,145.58,20.0]
[1724001687625,7.42686917,145.64,145.58,20.0]
[1724001687814,45.0,145.63,145.58,20.0]
[1724001688007,45.0,145.65,145.58,20.0]
[1724001688203,7.42681743,145.64,145.58,20.0]
[1724001688404,52.42681743,145.63,145.58,20.0]
[1724001688609,45.0,145.65,145.58,20.0]
[1724001688844,7.42578454,145.64,145.58,20.0]
[1724001689006,45.0,145.63,145.58,20.0]
[1724001689202,45.0,145.65,145.58,20.0]
[1724001689501,7.42364686,145.64,145.58,21.37370145]
[1724001689706,45.0,145.65,145.58,21.37370145]
[1724001689911,7.42376532,145.64,145.58,21.37370145]
[1724001690131,45.0,145.65,145.58,21.37370145]
[1724001690306,7.42433242,145.64,145.58,20.0]
[1724001690630,45.0,145.65,145.58,28.89]
[1724001690937,7.42379993,145.64,145.58,28.89]
[1724001691131,45.0,145.65,145.58,28.89]
[1724001691436,7.42372857,145.64,145.58,28.89]
[1724001691636,45.0,145.65,145.58,28.89]
[1724001691936,7.4242694,145.64,145.58,28.89]
[1724001692132,45.0,145.65,145.58,28.89]
[1724001692309,7.42474212,145.64,145.58,28.89]
[1724001692626,7.42474212,145.63,145.58,28.89]
[1724001692805,45.0,145.65,145.58,28.89]
[1724001693006,7.42540338,145.64,145.58,28.89]
[1724001693232,7.42540338,145.63,145.58,28.89]
[1724001693425,45.0,145.65,145.58,28.89]
[1724001693732,7.42469277,145.64,145.58,28.89]
[1724001693931,7.42469277,145.63,145.58,28.89]
[1724001694107,45.0,145.65,145.58,28.89]
[1724001694305,7.42465274,145.64,145.58,28.89]
[1724001694532,45.0,145.65,145.58,28.89]
[1724001694730,7.42464635,145.64,145.58,28.89]
[1724001694947,45.0,145.65,145.58,28.89]
[1724001695132,7.4245934,145.64,145.58,20.0]
[1724001695326,45.0,145.65,145.58,20.0]
[1724001695327,7.42455178,145.63,145.58,28.89]
[1724001695531,45.0,145.65,145.58,28.89]
[1724001695744,7.42447195,145.64,145.58,28.89]
[1724001695938,45.0,145.63,145.58,28.89]
[1724001696250,45.0,145.65,145.58,28.89]
[1724001696451,9.14074314,145.64,145.58,20.0]
[1724001696654,52.42366167,145.63,145.57,6.0455]
[1724001696953,1.71718821,145.62,145.57,6.0455]
[1724001697649,45.0,145.63,145.57,6.0455]
[1724001697852,45.0,145.63,145.52,6.1282]
[1724001698029,45.0,145.63,145.54,8.89]
[1724001698235,45.0,145.63,145.55,8.89]
[1724001698751,46.71751507,145.63,145.55,8.89]
[1724001698937,7.42081216,145.62,145.55,8.89]
[1724001699144,45.0,145.61,145.55,8.89]
[1724001701644,51.8677,145.61,145.55,8.89]
[1724001706646,7.4141415,145.6,145.55,8.89]
[1724001706858,45.0,145.59,145.55,8.89]
[1724001707064,51.8677,145.61,145.55,8.89]
[1724001707356,7.41410687,145.6,145.55,8.89]
[1724001707535,45.0,145.59,145.55,8.89]
[1724001707736,51.8677,145.61,145.55,8.89]
[1724001708464,45.0,145.61,145.55,8.89]
[1724001709251,16.6325,145.66,145.57,8.89]
[1724001709465,16.6325,145.66,145.59,8.89]
[1724001709466,7.41504153,145.65,145.59,8.89]
[1724001709772,9.13211684,145.64,145.57,15.0182]
[1724001709966,7.41504153,145.63,145.57,15.0182]
[1724001710170,16.6325,145.66,145.57,15.0182]
[1724001710347,6.8663,145.64,145.57,16.39189783]
[1724001710550,6.8659,145.65,145.59,8.89]
[1724001710859,23.4978,145.66,145.59,8.89]
[1724001711168,7.41660563,145.65,145.59,8.89]
[1724001711477,6.8653,145.66,145.59,8.89]
[1724001711771,7.41668454,145.65,145.59,8.89]
[1724001711951,6.8653,145.66,145.59,8.89]
[1724001712156,52.416659,145.65,145.59,8.89]
[1724001712371,45.0,145.65,145.59,8.89]
[1724001714871,6.8649,145.67,145.59,8.89]
[1724001715068,7.41045901,145.66,145.61,8.89]
[1724001715264,6.8649,145.67,145.61,8.89]
[1724001715471,7.41020734,145.66,145.61,8.89]
[1724001715664,6.8649,145.67,145.61,8.89]
[1724001715979,52.41018947,145.66,145.61,8.89]
[1724001716278,45.0,145.66,145.61,8.89]
[1724001716452,45.0,145.67,145.61,8.89]
[1724001716653,7.4087427,145.66,145.61,8.89]
[1724001716877,45.0,145.67,145.61,8.89]
[1724001717068,7.4087427,145.66,145.61,8.89]
[1724001717389,45.0,145.67,145.61,8.89]
[1724001717561,7.40842261,145.66,145.61,8.89]
[1724001717758,45.0,145.67,145.61,8.89]
[1724001717959,7.40841362,145.66,145.61,8.89]
[1724001718158,45.0,145.67,145.61,8.89]
[1724001718371,7.40907206,145.66,145.61,8.89]
[1724001718674,45.0,145.67,145.61,8.89]
[1724001718876,7.41049969,145.66,145.61,8.89]
[1724001719077,45.0,145.67,145.61,8.89]
[1724001719264,7.41170155,145.66,145.61,8.89]
[1724001719462,45.0,145.67,145.61,8.89]
[1724001719672,7.41172613,145.66,145.61,8.89]
[1724001719871,45.0,145.67,145.61,8.89]
[1724001720071,7.41173009,145.66,145.61,8.89]
[1724001720379,45.0,145.67,145.61,8.89]
[1724001720579,7.41177419,145.66,145.63,8.89]
[1724001720764,16.3111,145.73,145.65,8.89]
[1724001720967,7.41318607,145.72,145.67,8.89]
[1724001721170,8.89,145.76,145.67,28.4475]
[1724001721368,7.41394422,145.75,145.67,28.4475]
[1724001721683,7.41394422,145.74,145.67,28.4475]
[1724001721879,7.41394422,145.73,145.67,28.4475]
[1724001722186,7.41394422,145.72,145.67,28.4475]
[1724001722379,6.8612,145.75,145.67,28.4475]
[1724001722578,7.41746665,145.74,145.67,28.4475]
[1724001722781,7.41746665,145.73,145.67,28.4475]
[1724001723080,6.8612,145.75,145.67,28.4475]
[1724001723378,52.41772746,145.74,145.67,28.4475]
[1724001723567,7.41772746,145.73,145.67,28.4475]
[1724001723771,45.0,145.74,145.67,28.4475]
[1724001723971,7.41108165,145.73,145.67,28.4475]
[1724001724173,45.0,145.74,145.67,28.4475]
[1724001725590,45.0,145.74,145.69,8.89]
[1724001726488,45.0,145.74,145.67,28.4475]
[1724001727489,51.8616,145.74,145.67,19.5575]
[1724001730773,45.0,145.74,145.68,10.26284256]
[1724001730978,6.8611,145.75,145.68,10.26284256]
[1724001731284,45.0,145.74,145.68,10.26284256]
[1724001731659,45.0,145.74,145.67,6.0494]
[1724001731992,1.71625166,145.73,145.64,29.0166]
[1724001732185,6.863,145.71,145.64,29.0166]
[1724001732485,46.71636722,145.7,145.64,29.0166]
[1724001733383,45.0,145.7,145.64,29.0166]
[1724001735984,1.71636176,145.69,145.64,29.0166]
[1724001736368,45.0,145.7,145.64,20.1266]
[1724001736583,6.8635,145.7,145.64,20.1266]
[1724001736883,45.0,145.69,145.64,29.0166]
[1724001737796,45.0,145.7,145.64,29.0166]
[1724001741600,45.0,145.7,145.65,1.37229796]
[1724001741982,45.0,145.7,145.64,29.0166]
[1724001742199,45.0,145.71,145.64,28.5166]
[1724001742373,45.0,145.71,145.65,1.37297763]
[1724001742575,45.0,145.71,145.64,28.5166]
[1724001743396,45.0,145.71,145.65,1.37298212]
[1724001744598,45.0,145.71,145.64,28.5166]
[1724001745506,45.0,145.71,145.64,19.6266]
[1724001745795,51.8632,145.71,145.64,19.6266]
[1724001746302,1.71640786,145.7,145.64,19.6266]
[1724001746600,51.8632,145.71,145.64,19.6266]
[1724001748774,6.8634,145.7,145.64,19.6266]
[1724001748975,6.8643,145.68,145.6,13.0081]
[1724001749193,53.58159512,145.67,145.6,13.0081]
[1724001749700,6.8653,145.66,145.6,13.0081]
[1724001749903,46.71708772,145.65,145.57,6.2599]
[1724001750109,1.71716495,145.64,145.57,6.2599]
[1724001750281,45.0,145.65,145.58,8.89]
[1724001750683,45.0,145.65,145.6,8.89]
[1724001750903,45.0,145.66,145.6,8.89]
[1724001751478,6.8644,145.68,145.6,8.89]
[1724001751711,45.0,145.67,145.6,8.89]
[1724001753109,16.0983,145.71,145.62,8.89]
[1724001753412,14.27405401,145.7,145.62,8.89]
[1724001753617,6.8638,145.7,145.62,8.89]
[1724001754313,7.41052427,145.69,145.62,8.89]
[1724001754490,45.0,145.68,145.62,8.89]
[1724001754695,1.71652058,145.67,145.62,8.89]
[1724001755309,45.0,145.69,145.62,8.89]
[1724001755516,45.0,145.69,145.64,8.89]
[1724001756222,45.0,145.69,145.62,8.89]
[1724001756427,45.0,145.69,145.63,20.0]
[1724001757031,45.0,145.69,145.64,10.2631968]
[1724001757205,6.8625,145.72,145.65,1.37300184]
[1724001757535,7.41434266,145.71,145.65,1.37300184]
[1724001757829,7.41434266,145.7,145.65,1.37300184]
[1724001757998,6.8625,145.72,145.65,1.37300184]
[1724001758200,7.41446924,145.71,145.65,1.37300184]
[1724001758404,7.41446924,145.7,145.65,1.37300184]
[1724001758607,6.8625,145.72,145.66,8.89]
[1724001758810,7.41485245,145.71,145.66,15.2837]
[1724001759128,6.862,145.73,145.66,15.2837]
[1724001759306,52.41544738,145.72,145.66,15.2837]
[1724001759626,7.41544738,145.71,145.66,28.2918]
[1724001759823,6.8616,145.74,145.66,28.2918]
[1724001760026,7.41239092,145.73,145.66,28.2918]
[1724001760216,7.41239092,145.72,145.66,28.2918]
[1724001760424,7.41239092,145.71,145.66,28.2918]
[1724001760729,6.862,145.73,145.66,28.2918]
[1724001760924,6.8629,145.71,145.66,6.3937]
[1724001761123,45.0,145.7,145.66,6.3937]
[1724001761326,60.7526,145.72,145.66,6.3937]
[1724001761516,7.41304694,145.71,145.66,6.3937]
[1724001761827,45.0,145.7,145.66,6.3937]
[1724001762328,46.71630318,145.71,145.66,6.3937]
[1724001762531,9.12777728,145.7,145.66,6.3937]
[1724001762734,45.0,145.71,145.66,6.3937]
[1724001762940,7.41138807,145.7,145.66,6.3937]
[1724001763232,45.0,145.71,145.66,6.3937]
[1724001763433,7.41143794,145.7,145.66,6.3937]
[1724001763635,1.71627572,145.69,145.66,6.3937]
[1724001763835,45.0,145.71,145.66,6.3937]
[1724001764034,7.4106971,145.7,145.66,6.3937]
[1724001764217,45.0,145.71,145.66,6.3937]
[1724001764419,7.41095312,145.7,145.66,6.3937]
[1724001764735,54.12698202,145.69,145.66,6.3937]
[1724001764940,45.0,145.69,145.66,6.3937]
[1724001765136,6.8628,145.72,145.66,6.3937]
[1724001765342,52.41052239,145.71,145.66,6.3937]
[1724001765524,45.0,145.71,145.66,6.3937]
[1724001765732,7.41038601,145.7,145.66,6.3937]
[1724001765920,7.41038601,145.69,145.66,6.3937]
[1724001766251,45.0,145.71,145.66,6.3937]
[1724001766418,7.41095708,145.7,145.66,6.3937]
[1724001766748,7.41059568,145.69,145.66,6.3937]
[1724001767041,45.0,145.71,145.66,6.3937]
[1724001767238,7.41066702,145.7,145.66,6.3937]
[1724001767454,7.41066702,145.69,145.66,6.3937]
[1724001767619,1.71627563,145.7,145.66,6.3937]
[1724001767819,45.0,145.71,145.66,6.3937]
[1724001768027,7.41078492,145.7,145.66,6.3937]
[1724001768219,45.0,145.71,145.66,6.3937]
[1724001768420,7.41078698,145.7,145.66,6.3937]
[1724001768655,7.41078698,145.69,145.66,6.3937]
[1724001768949,45.0,145.71,145.63,41.8981]
[1724001768950,51.863,145.71,145.63,48.2918]
[1724001769126,7.41058321,145.7,145.63,48.2918]
[1724001769328,54.1269868,145.69,145.63,48.2918]
[1724001769530,51.863,145.71,145.63,48.2918]
[1724001769735,9.12602996,145.7,145.63,39.4018]
[1724001769976,52.40953978,145.69,145.63,19.4018]
[1724001770145,52.40953978,145.69,145.63,6.3937]
[1724001770146,15.98992135,145.68,145.63,6.3937]
[1724001770351,15.2916,145.73,145.63,6.3937]
[1724001770547,54.12512161,145.72,145.64,8.89]
[1724001770759,7.40881373,145.71,145.64,8.89]
[1724001770957,59.27221373,145.7,145.63,6.3937]
[1724001771172,7.40881373,145.69,145.63,6.3937]
[1724001771369,7.40881373,145.68,145.63,6.3937]
[1724001771673,52.40881373,145.67,145.63,6.3937]
[1724001771973,45.0,145.67,145.63,6.3937]
[1724001772155,51.8645,145.68,145.63,6.3937]
[1724001772470,7.40860624,145.67,145.63,6.3937]
[1724001772659,45.0,145.66,145.63,6.3937]
[1724001773045,45.0,145.67,145.63,6.3937]
[1724001774451,7.40766888,145.66,145.63,6.3937]
[1724001774654,45.0,145.67,145.63,6.3937]
[1724001776357,7.40801209,145.66,145.63,6.3937]
[1724001777662,45.0,145.67,145.63,6.3937]
[1724001779065,7.40901371,145.66,145.63,6.3937]
[1724001779273,45.0,145.67,145.63,6.3937]
[1724001779478,7.40992613,145.66,145.63,6.3937]
[1724001779679,45.0,145.67,145.63,6.3937]
[1724001779984,7.41279939,145.66,145.63,6.3937]
[1724001780279,45.0,145.67,145.63,6.3937]
[1724001780583,7.41291771,145.66,145.63,6.3937]
[1724001780771,45.0,145.67,145.63,6.3937]
[1724001780977,7.41386544,145.66,145.63,6.3937]
[1724001781155,45.0,145.67,145.63,6.3937]
[1724001781356,7.41387072,145.66,145.63,6.3937]
[1724001781582,45.0,145.67,145.63,6.3937]
[1724001781758,7.41395445,145.66,145.63,6.3937]
[1724001781962,45.0,145.67,145.63,6.3937]
[1724001782164,7.41395197,145.66,145.63,6.3937]
[1724001782361,45.0,145.67,145.63,6.3937]
[1724001782674,7.41219054,145.66,145.6,8.89]
[1724001782980,51.8648,145.67,145.6,8.89]
[1724001783296,7.41172833,145.66,145.59,19.3226]
[1724001783476,59.27752833,145.65,145.59,19.3226]
[1724001783676,14.27752833,145.65,145.59,19.3226]
[1724001783863,45.0,145.64,145.59,19.3226]
[1724001784263,45.0,145.64,145.59,6.3145]
[1724001784492,9.12753032,145.63,145.56,15.2045]
[1724001784659,45.0,145.62,145.56,15.2045]
[1724001784859,1.71726817,145.61,145.56,15.2045]
[1724001785290,46.71733437,145.62,145.56,6.3145]
[1724001785455,1.71733437,145.6,145.56,6.3145]
[1724001785661,51.8673,145.62,145.56,6.3145]
[1724001785960,45.0,145.6,145.56,6.3145]
[1724001786493,45.0,145.61,145.56,6.3145]
[1724001794398,45.0,145.61,145.5,19.3226]
[1724001794399,1.7174325,145.6,145.5,19.3226]
[1724001794603,6.8694,145.58,145.5,19.3226]
[1724001794779,55.60790346,145.57,145.5,19.3226]
[1724001794980,62.47750346,145.57,145.5,19.3226]
[1724001795185,51.8696,145.57,145.5,19.3226]
[1724001795994,1.71802647,145.56,145.5,19.3226]
[1724001796586,51.8696,145.57,145.5,19.3226]
[1724001797201,1.71806527,145.56,145.5,19.3226]
[1724001797708,51.8696,145.57,145.5,19.3226]
[1724001797869,72.5096,145.57,145.5,19.3226]
[1724001798075,1.718083,145.56,145.5,19.3226]
[1724001799900,51.8696,145.57,145.5,19.3226]
[1724001801800,51.8696,145.57,145.5,18.3226]
[1724001802885,1.71798432,145.56,145.5,18.3226]
[1724001803085,6.8687,145.59,145.53,8.89]
[1724001803484,8.58674824,145.58,145.53,8.89]
[1724001803688,6.869,145.58,145.51,8.89]
[1724001804109,6.8692,145.58,145.5,18.3226]
[1724001804313,6.8692,145.58,145.5,27.2126]
[1724001804491,45.0,145.57,145.5,27.2126]
[1724001807486,51.8695,145.57,145.5,18.3226]
[1724001810620,45.0,145.57,145.5,18.3226]
[1724001812521,51.8696,145.57,145.5,18.3226]
[1724001814527,53.58771191,145.57,145.5,18.3226]
[1724001814821,46.71811191,145.57,145.51,8.89]
[1724001815001,45.0,145.57,145.51,8.89]
[1724001815608,45.0,145.57,145.5,18.3226]
[1724001817616,45.0,145.57,145.48,9.2531117]
[1724001817617,60.1627,145.57,145.48,9.2531117]
[1724001818423,8.89,145.56,145.48,0.3631117]
[1724001818738,45.0,145.55,145.48,9.2531117]
[1724001819122,6.8705,145.55,145.48,9.2531117]
[1724001819425,45.0,145.54,145.48,9.2531117]
[1724001821306,45.0,145.54,145.5,8.89]
[1724001821519,15.1627,145.57,145.5,8.89]
[1724001821720,15.1627,145.57,145.48,0.3631117]
[1724001821721,46.71803306,145.56,145.48,0.3631117]
[1724001821914,51.87,145.56,145.49,8.89]
[1724001823813,45.0,145.56,145.51,8.89]
[1724001824004,6.8682,145.6,145.53,8.89]
[1724001824204,6.8686,145.59,145.53,8.89]
[1724001825106,6.8686,145.59,145.51,27.1677]
[1724001825302,51.869,145.58,145.51,27.1677]
[1724001825608,51.8692,145.58,145.51,27.1677]
[1724001825809,6.8696,145.57,145.51,27.1677]
[1724001826025,45.0,145.56,145.51,27.1677]
[1724001827132,45.0,145.57,145.51,27.1677]
[1724001827634,53.58767049,145.57,145.51,6.2696]
[1724001827836,51.8696,145.57,145.51,6.2696]
[1724001828012,72.5096,145.57,145.51,6.2696]
[1724001828332,51.8696,145.57,145.51,6.2696]
[1724001829511,7.39687096,145.56,145.51,6.2696]
[1724001829714,45.0,145.55,145.51,6.2696]
[1724001830254,45.0,145.56,145.51,6.2696]
[1724001830950,51.87,145.56,145.51,6.2696]
[1724001831149,51.87,145.56,145.48,12.3712117]
[1724001831671,51.87,145.56,145.48,21.2612117]
[1724001832841,8.89,145.55,145.48,12.3712117]
[1724001833062,6.8715,145.53,145.48,12.3712117]
[1724001833265,6.8733,145.49,145.48,0.3631117]
[1724001833742,51.8733,145.49,145.48,0.3631117]
[1724001834560,60.98558084,145.49,145.48,0.3631117]
[1724001835470,69.87558084,145.49,145.48,0.3631117]
[1724001836165,69.8748317,145.49,145.48,0.3631117]
[1724001836565,51.8733,145.49,145.48,0.3631117]
[1724001837167,59.26595034,145.49,145.48,0.3631117]
[1724001837336,54.11150298,145.49,145.48,0.3631117]
[1724001837537,53.59215587,145.49,145.48,0.3631117]
[1724001837742,60.98498227,145.49,145.48,0.3631117]
[1724001837974,59.2661264,145.49,145.48,0.3631117]
[1724001839447,51.8733,145.49,145.48,0.3631117]
[1724001839957,59.26404886,145.49,145.48,0.3631117]
[1724001840369,59.26539779,145.49,145.48,0.3631117]
[1724001842174,7.39209779,145.49,145.48,0.3631117]
[1724001842373,62.54319425,145.56,145.48,0.3631117]
[1724001842374,22.6068,145.55,145.48,0.3631117]
[1724001842679,8.89,145.53,145.48,0.3631117]
[1724001842875,7.39350264,145.52,145.48,0.3631117]
[1724001843077,25.458,145.55,145.48,0.3631117]
[1724001843275,7.39455502,145.54,145.48,0.3631117]
[1724001843481,7.39455502,145.53,145.48,0.3631117]
[1724001843788,1.71831751,145.54,145.48,0.3631117]
[1724001843956,25.458,145.55,145.48,0.3631117]
[1724001844155,9.11294964,145.54,145.48,0.3631117]
[1724001844363,7.39457089,145.53,145.48,0.3631117]
[1724001844563,1.71837541,145.52,145.48,0.3631117]
[1724001844865,1.71837855,145.51,145.48,0.3631117]
[1724001845074,6.8725,145.51,145.48,0.3631117]
[1724001845271,46.71875946,145.5,145.48,0.3631117]
[1724001845472,51.8729,145.5,145.48,0.3631117]
[1724001845799,1.71870329,145.49,145.48,0.3631117]
[1724001846001,51.8729,145.5,145.48,0.3631117]
[1724001846495,1.71870505,145.49,145.48,0.3631117]
[1724001846875,51.8729,145.5,145.48,0.3631117]
[1724001847295,1.71870119,145.49,145.48,0.3631117]
[1724001847794,51.8729,145.5,145.48,0.3631117]
[1724001848005,53.59160332,145.5,145.48,0.3631117]
[1724001848179,51.8729,145.5,145.48,0.3631117]
[1724001848378,53.5916023,145.5,145.48,0.3631117]
[1724001850280,53.59160111,145.5,145.48,0.3631117]
[1724001851002,6.8733,145.49,145.48,0.3631117]
[1724001851303,51.8733,145.49,145.48,0.3631117]
[1724001856333,90.5143518,145.49,145.48,0.3631117]
[1724001856805,127.67218515,145.49,145.48,0.3631117]
[1724001857504,132.36380714,145.49,145.48,0.3631117]
[1724001858177,132.36380714,145.49,145.34,0.8631117]
[1724001858178,20.64,145.45,145.34,0.8631117]
[1724001858500,6.8772,145.41,145.34,0.8631117]
[1724001858697,45.0,145.4,145.34,0.8631117]
[1724001859293,36.8781,145.39,145.34,0.8631117]
[1724001859486,51.8785,145.38,145.34,0.8631117]
[1724001859676,45.0,145.38,145.34,0.8631117]
[1724001860319,36.8781,145.39,145.34,0.8631117]
[1724001860320,6.8794,145.37,145.34,0.8631117]
[1724001860721,6.8799,145.35,145.34,0.8631117]
[1724001860898,38.89,145.39,145.34,0.8631117]
[1724001861093,6.879,145.37,145.34,0.8631117]
[1724001861300,1.7201538,145.38,145.34,0.8631117]
[1724001861824,46.7201538,145.38,145.34,0.8631117]
[1724001862014,1.7201538,145.38,145.34,0.8631117]
[1724001862409,8.89,145.38,145.34,0.8631117]
[1724001862723,6.8799,145.35,145.34,0.8631117]
[1724001862923,53.60047948,145.35,145.34,0.8631117]
[1724001863223,70.80027948,145.35,145.34,0.8631117]
[1724001863516,70.80027948,145.35,145.19,13.2343117]
[1724001863517,17.2032,145.33,145.19,13.2343117]
[1724001863725,8.89,145.26,145.19,13.2343117]
[1724001863895,45.0,145.25,145.19,13.2343117]
[1724001864096,51.8846,145.25,145.19,0.8631117]
[1724001864314,8.89,145.24,145.19,0.8631117]
[1724001864499,51.8847,145.25,145.19,0.8631117]
[1724001864500,45.0,145.25,145.19,0.8631117]
[1724001865101,6.8827,145.29,145.19,0.8631117]
[1724001865414,45.0,145.28,145.19,23.2131117]
[1724001866117,46.94487371,145.32,145.19,23.2131117]
[1724001866330,51.8819,145.31,145.19,23.2131117]